bitfinex-derivatives/quotes_SOLF0:USTF0_20241212
["timestamp","ask_amount","ask_price","bid_price","bid_amount"]
[1733969252942,12.33607,226.7,226.57,10.27607]
[1733969253140,8.77949632,226.7,226.67,2.2041]
[1733969253338,8.77949632,226.7,226.62,6.57559632]
[1733969253339,6.57559632,226.7,226.62,6.57559632]
[1733969253540,2.06,226.72,226.62,6.57559632]
[1733969253839,2.2039,226.7,226.62,6.57559632]
[1733969254225,2.2039,226.7,226.62,7.99519632]
[1733969254637,6.57559632,226.69,226.65,2.2043]
[1733969255642,8.77959632,226.69,226.65,2.2043]
[1733969257347,6.57559632,226.69,226.62,7.99519632]
[1733969258047,6.57559632,226.69,226.66,2.2042]
[1733969258647,6.57559632,226.69,226.57,5.30342579]
[1733969258861,6.57559632,226.67,226.59,6.57559632]
[1733969260051,6.57559632,226.67,226.63,2.2045]
[1733969261047,4.2638,226.71,226.65,2.2043]
[1733969261345,10.83939632,226.71,226.63,6.57559632]
[1733969262148,10.83939632,226.71,226.66,2.2042]
[1733969262451,2.204,226.69,226.66,2.2042]
[1733969262751,8.63559632,226.71,226.66,2.2042]
[1733969262951,2.2039,226.7,226.66,2.2042]
[1733969264546,2.2041,226.68,226.64,2.2043]
[1733969265247,8.63559632,226.69,226.61,2.06]
[1733969265455,2.2043,226.66,226.62,2.2045]
[1733969265648,8.63559632,226.69,226.6,6.57559632]
[1733969265848,8.63559632,226.69,226.62,6.57559632]
[1733969266757,2.2041,226.68,226.64,2.2043]
[1733969267745,10.83959632,226.69,226.65,2.2043]
[1733969268253,2.2041,226.68,226.65,2.2043]
[1733969270553,2.06,226.69,226.62,6.57559632]
[1733969270754,2.06,226.69,226.66,2.2042]
[1733969273653,2.2039,226.7,226.66,2.2042]
[1733969275251,8.77939632,226.71,226.66,2.2042]
[1733969278754,6.57559632,226.69,226.58,2.06]
[1733969278955,6.57559632,226.69,226.61,6.57559632]
[1733969279352,2.2042,226.67,226.63,2.2045]
[1733969280058,2.2043,226.66,226.63,2.2045]
[1733969280252,2.06,226.72,226.57,5.30342579]
[1733969280253,6.57559632,226.67,226.57,5.30342579]
[1733969280452,6.57559632,226.67,226.59,6.57559632]
[1733969280654,8.63559632,226.67,226.59,6.57559632]
[1733969281055,8.63559632,226.67,226.6,2.2048]
[1733969281951,2.2043,226.65,226.6,2.2048]
[1733969283258,2.2044,226.64,226.6,2.2048]
[1733969286664,2.2044,226.64,226.61,2.2047]
[1733969287269,2.2044,226.64,226.59,8.78039632]
[1733969287562,2.2044,226.64,226.59,6.57559632]
[1733969288564,2.2044,226.64,226.6,2.2048]
[1733969289660,2.2043,226.66,226.61,6.57559632]
[1733969290061,2.2043,226.66,226.56,7.43036074]
[1733969290261,2.2043,226.66,226.61,6.57559632]
[1733969291258,2.2043,226.66,226.62,2.2046]
[1733969292768,4.2642,226.67,226.63,2.2045]
[1733969294468,4.2642,226.67,226.62,2.2046]
[1733969301667,4.2642,226.67,226.61,6.57559632]
[1733969301872,2.2043,226.66,226.61,6.57559632]
[1733969303368,2.2044,226.65,226.61,6.57559632]
[1733969303769,6.57559632,226.65,226.56,5.37036074]
[1733969303975,2.2048,226.61,226.55,8.78079632]
[1733969304176,6.57559632,226.63,226.55,8.78079632]
[1733969304384,6.57559632,226.61,226.54,1.4152]
[1733969304568,2.2049,226.59,226.54,1.4152]
[1733969305471,2.205,226.58,226.54,1.4152]
[1733969306076,2.2051,226.57,226.53,6.57559632]
[1733969306272,6.57559632,226.59,226.49,2.06]
[1733969306469,6.57559632,226.59,226.51,6.57559632]
[1733969306677,2.2054,226.55,226.51,6.57559632]
[1733969307471,6.57559632,226.57,226.51,6.57559632]
[1733969307773,6.57559632,226.57,226.47,1.4589]
[1733969307774,6.57559632,226.55,226.47,1.4589]
[1733969307975,6.57559632,226.53,226.47,1.4589]
[1733969308179,6.57559632,226.53,226.46,6.57559632]
[1733969308578,2.2058,226.5,226.45,2.2062]
[1733969309081,2.06,226.52,226.46,6.57559632]
[1733969309278,2.06,226.54,226.48,6.57559632]
[1733969310674,2.2056,226.52,226.48,6.57559632]
[1733969314176,2.06,226.58,226.51,2.2057]
[1733969314381,2.06,226.58,226.52,6.57559632]
[1733969314581,2.2053,226.55,226.52,6.57559632]
[1733969315885,2.2055,226.54,226.49,2.2059]
[1733969316078,2.2055,226.54,226.5,6.57559632]
[1733969317485,2.2055,226.54,226.5,8.78139632]
[1733969319982,2.2055,226.54,226.48,2.8744]
[1733969319983,1.3912,226.6,226.52,6.57559632]
[1733969320183,6.57559632,226.59,226.52,6.57559632]
[1733969320779,2.2053,226.55,226.51,6.57559632]
[1733969321577,2.2053,226.55,226.51,8.78129632]
[1733969323184,2.2054,226.54,226.51,6.57559632]
[1733969325182,6.57559632,226.57,226.51,6.57559632]
[1733969325390,2.2055,226.53,226.51,6.57559632]
[1733969325688,6.57559632,226.57,226.51,6.57559632]
[1733969325891,2.2053,226.56,226.51,6.57559632]
[1733969326081,6.57559632,226.57,226.51,6.57559632]
[1733969326590,2.2054,226.55,226.51,6.57559632]
[1733969326887,1.4186,226.68,226.53,6.57559632]
[1733969327091,6.57559632,226.63,226.55,6.57559632]
[1733969327593,2.06,226.62,226.55,6.57559632]
[1733969327790,2.205,226.59,226.55,6.57559632]
[1733969331144,2.2051,226.58,226.53,8.78099632]
[1733969335187,2.2052,226.57,226.53,8.78099632]
[1733969339594,2.2052,226.57,226.55,6.57559632]
[1733969343103,5.24341287,226.64,226.55,6.57559632]
[1733969343303,2.06,226.63,226.58,6.57559632]
[1733969343499,7.30341287,226.64,226.58,6.57559632]
[1733969343999,6.57559632,226.63,226.54,2.2053]
[1733969344203,6.57559632,226.61,226.49,2.06]
[1733969344397,6.57559632,226.59,226.49,2.06]
[1733969344705,8.63559632,226.59,226.52,6.57559632]
[1733969346003,2.2053,226.56,226.52,6.57559632]
[1733969347204,8.63559632,226.59,226.52,6.57559632]
[1733969347403,2.2053,226.55,226.5,8.78139632]
[1733969349304,6.57559632,226.57,226.48,2.8744]
[1733969349533,2.2057,226.52,226.48,2.8744]
[1733969351408,2.2057,226.51,226.47,6.57559632]
[1733969353808,6.57559632,226.5,226.44,46.20761236]
[1733969354013,6.57559632,226.5,226.43,6.57559632]
[1733969354212,2.2062,226.46,226.41,6.57559632]
[1733969354709,2.2062,226.46,226.39,5.33666186]
[1733969354910,6.57559632,226.44,226.36,4.183]
[1733969355117,6.57559632,226.44,226.38,6.57559632]
[1733969355518,2.2065,226.43,226.38,8.78259632]
[1733969356707,6.57559632,226.44,226.37,2.207]
[1733969357016,8.63559632,226.44,226.37,8.78259632]
[1733969357407,8.63559632,226.44,226.37,6.57559632]
[1733969357611,4.2664,226.44,226.39,8.78239632]
[1733969361217,4.2664,226.44,226.39,6.57559632]
[1733969361415,6.57559632,226.47,226.42,2.2066]
[1733969361416,2.06,226.47,226.42,2.2066]
[1733969361923,4.2661,226.47,226.42,2.2066]
[1733969364916,2.2062,226.46,226.42,2.2066]
[1733969365122,2.2062,226.46,226.41,6.57559632]
[1733969365322,2.2062,226.46,226.41,8.78229632]
[1733969365516,2.2062,226.46,226.41,2.2067]
[1733969367824,6.57559632,226.43,226.36,6.57559632]
[1733969369728,2.2069,226.39,226.36,6.57559632]
[1733969371473,2.2068,226.4,226.36,8.78279632]
[1733969374534,2.06,226.42,226.36,6.57559632]
[1733969374736,2.2066,226.42,226.38,8.78259632]
[1733969376238,6.57559632,226.39,226.33,5.21420797]
[1733969376443,6.57559632,226.36,226.28,6.73248632]
[1733969376642,6.57559632,226.34,226.28,0.15689]
[1733969376941,2.2075,226.33,226.28,2.36479]
[1733969377240,8.63559632,226.34,226.28,0.15689]
[1733969377538,6.57559632,226.32,226.28,0.15689]
[1733969377941,2.2077,226.31,226.28,0.15689]
[1733969380432,2.06,226.34,226.29,6.57559632]
[1733969380941,2.2073,226.35,226.3,2.2077]
[1733969381144,2.06,226.34,226.3,2.2077]
[1733969385741,5.28442612,226.37,226.29,6.57559632]
[1733969385945,1.4136,226.48,226.31,6.57559632]
[1733969385946,2.06,226.36,226.31,6.57559632]
[1733969386147,2.06,226.38,226.31,6.57559632]
[1733969386351,4.267,226.38,226.33,6.57559632]
[1733969386647,2.06,226.38,226.33,6.57559632]
[1733969387451,2.06,226.38,226.34,2.2073]
[1733969388154,2.06,226.38,226.35,2.2073]
[1733969389449,2.2067,226.42,226.35,6.57559632]
[1733969389753,2.06,226.41,226.35,6.57559632]
[1733969390143,2.2068,226.4,226.35,8.78279632]
[1733969393159,6.57559632,226.4,226.33,6.57559632]
[1733969393455,1.4136,226.48,226.33,6.57559632]
[1733969393656,6.57559632,226.42,226.35,6.57559632]
[1733969393861,4.2667,226.41,226.35,6.57559632]
[1733969394850,4.2667,226.41,226.36,2.2071]
[1733969394851,2.2068,226.4,226.36,2.2071]
[1733969395255,2.06,226.41,226.35,6.57559632]
[1733969396653,2.2069,226.39,226.35,8.78279632]
[1733969398558,2.2069,226.39,226.35,6.57559632]
[1733969401264,2.2069,226.39,226.35,8.78289632]
[1733969402160,2.2069,226.39,226.35,6.57559632]
[1733969403058,2.2069,226.39,226.34,2.2074]
[1733969403059,6.57559632,226.4,226.34,2.2074]
[1733969403261,6.57559632,226.4,226.31,2.06]
[1733969403462,6.57559632,226.38,226.31,8.78319632]
[1733969403662,2.2073,226.35,226.31,2.2076]
[1733969403862,2.2073,226.35,226.31,8.78319632]
[1733969404568,2.2071,226.38,226.33,6.57559632]
[1733969405574,2.2073,226.35,226.31,6.57559632]
[1733969406767,2.2073,226.35,226.31,8.78319632]
[1733969408065,6.57559632,226.33,226.27,2.8182]
[1733969408662,2.2077,226.31,226.27,5.0262]
[1733969410863,2.2078,226.3,226.26,6.57559632]
[1733969412171,2.2078,226.3,226.27,2.208]
[1733969412970,2.2077,226.31,226.27,2.208]
[1733969413270,2.2077,226.31,226.28,6.57559632]
[1733969413470,2.2075,226.33,226.28,8.78349632]
[1733969413769,8.63559632,226.35,226.3,6.57559632]
[1733969414070,2.06,226.34,226.3,6.57559632]
[1733969414269,2.2075,226.33,226.3,8.78329632]
[1733969414769,2.2075,226.33,226.3,6.57559632]
[1733969415670,2.06,226.34,226.3,6.57559632]
[1733969415870,4.2674,226.34,226.3,8.78329632]
[1733969416367,5.17917856,226.37,226.3,6.57559632]
[1733969416573,2.06,226.36,226.33,2.2075]
[1733969416773,4.4111,226.53,226.34,6.57559632]
[1733969416966,6.57559632,226.4,226.34,6.57559632]
[1733969417175,4.2669,226.39,226.35,2.2072]
[1733969417976,4.2669,226.39,226.34,8.78289632]
[1733969419376,2.2068,226.41,226.36,6.57559632]
[1733969419668,2.06,226.4,226.36,6.57559632]
[1733969420674,2.06,226.4,226.36,8.78269632]
[1733969422870,2.06,226.4,226.36,2.2071]
[1733969423073,4.2669,226.4,226.35,2.2073]
[1733969423572,2.06,226.4,226.34,6.57559632]
[1733969423774,6.57559632,226.42,226.34,6.57559632]
[1733969424077,2.06,226.42,226.38,6.57559632]
[1733969424280,6.57559632,226.46,226.4,6.57559632]
[1733969424472,8.63559632,226.46,226.4,6.57559632]
[1733969424668,2.06,226.46,226.4,6.57559632]
[1733969425674,4.2662,226.46,226.41,2.2067]
[1733969426973,7.98919632,226.48,226.4,6.57559632]
[1733969427176,2.06,226.47,226.42,8.78219632]
[1733969427371,2.7887,226.6,226.42,6.57559632]
[1733969427572,6.57559632,226.5,226.42,6.57559632]
[1733969427876,2.06,226.49,226.42,6.57559632]
[1733969428476,4.2659,226.49,226.44,2.2064]
[1733969428785,2.2059,226.49,226.44,8.78199632]
[1733969430880,2.2059,226.49,226.44,2.2064]
[1733969431395,2.2059,226.49,226.43,6.57559632]
[1733969431396,2.2058,226.5,226.45,2.2063]
[1733969431882,2.2059,226.49,226.45,2.2063]
[1733969432286,6.57559632,226.49,226.44,2.2064]
[1733969432485,6.57559632,226.49,226.41,6.57559632]
[1733969432686,2.2061,226.47,226.41,6.57559632]
[1733969433278,2.2062,226.46,226.41,8.78219632]
[1733969433480,4.2662,226.46,226.41,8.78219632]
[1733969435280,4.2662,226.46,226.38,2.06]
[1733969435281,2.06,226.46,226.36,2.7461]
[1733969435481,6.57559632,226.45,226.39,8.78239632]
[1733969436093,2.2065,226.43,226.39,8.78239632]
[1733969436493,2.2065,226.43,226.39,2.2068]
[1733969437396,2.2066,226.42,226.38,2.207]
[1733969438398,2.2066,226.42,226.39,2.2069]
[1733969438689,6.57559632,226.45,226.39,8.78249632]
[1733969438690,2.2065,226.44,226.39,8.78249632]
[1733969438991,2.2065,226.44,226.39,6.57559632]
[1733969439295,2.2065,226.44,226.4,2.2067]
[1733969440796,2.06,226.45,226.41,2.2066]
[1733969442593,4.2663,226.45,226.41,2.2066]
[1733969443797,2.2063,226.45,226.41,2.2066]
[1733969443993,4.2663,226.45,226.41,2.2066]
[1733969444702,2.06,226.47,226.43,6.57559632]
[1733969445192,2.06,226.47,226.44,2.2064]
[1733969447700,2.206,226.48,226.44,2.2064]
[1733969447901,4.266,226.48,226.44,2.2064]
[1733969449000,2.06,226.48,226.43,6.57559632]
[1733969449303,2.2061,226.47,226.43,6.57559632]
[1733969449834,2.2061,226.47,226.43,8.78209632]
[1733969450804,8.63559632,226.48,226.4,2.2067]
[1733969451006,6.57559632,226.46,226.4,2.2067]
[1733969451202,6.57559632,226.46,226.38,6.57559632]
[1733969451603,6.57559632,226.42,226.36,2.7461]
[1733969451900,6.57559632,226.4,226.33,49.89841363]
[1733969453604,2.207,226.38,226.33,52.10581363]
[1733969453810,2.207,226.38,226.33,8.78299632]
[1733969454379,6.57559632,226.4,226.28,2.06]
[1733969454380,2.2072,226.36,226.32,6.57559632]
[1733969454445,6.57559632,226.4,226.32,6.57559632]
[1733969454905,2.2071,226.38,226.33,2.2074]
[1733969455103,6.57559632,226.4,226.34,6.57559632]
[1733969456604,2.2069,226.39,226.34,8.78289632]
[1733969463916,2.2069,226.39,226.35,2.2072]
[1733969464119,51.09680592,226.54,226.38,6.57559632]
[1733969464416,6.57559632,226.44,226.38,6.57559632]
[1733969464619,2.06,226.43,226.38,6.57559632]
[1733969465508,2.2066,226.43,226.38,8.78259632]
[1733969465715,4.2666,226.43,226.38,8.78259632]
[1733969465913,8.63559632,226.43,226.38,8.78259632]
[1733969466117,2.2066,226.42,226.38,8.78259632]
[1733969469813,4.2666,226.42,226.38,8.78259632]
[1733969470011,2.06,226.42,226.38,6.57559632]
[1733969470218,2.06,226.46,226.4,6.57559632]
[1733969470420,2.06,226.46,226.43,6.57559632]
[1733969471220,8.01549632,226.51,226.43,6.57559632]
[1733969471423,2.06,226.5,226.43,6.57559632]
[1733969472667,2.2059,226.49,226.44,2.2063]
[1733969475618,2.06,226.5,226.46,2.2062]
[1733969475821,2.06,226.5,226.45,6.57559632]
[1733969476825,4.2658,226.5,226.45,8.78189632]
[1733969477221,2.206,226.49,226.43,8.78199632]
[1733969477424,6.57559632,226.49,226.43,8.78199632]
[1733969478657,2.2061,226.48,226.43,8.78199632]
[1733969480418,2.2061,226.47,226.43,8.78199632]
[1733969484729,2.2063,226.45,226.41,2.2067]
[1733969485139,6.57559632,226.47,226.38,4.3354]
[1733969485327,5.16462271,226.53,226.38,4.3354]
[1733969485328,2.2067,226.41,226.38,2.9309]
[1733969485530,6.57559632,226.41,226.34,6.57559632]
[1733969486726,2.2068,226.4,226.36,2.2072]
[1733969487533,8.78229632,226.41,226.36,2.2072]
[1733969487832,8.78229632,226.41,226.37,2.207]
[1733969488134,2.2067,226.41,226.37,2.207]
[1733969491738,8.78219632,226.43,226.37,2.207]
[1733969492332,2.2066,226.42,226.37,2.207]
[1733969496437,2.2066,226.42,226.38,2.207]
[1733969498233,6.75542907,226.51,226.38,6.57559632]
[1733969498434,6.57559632,226.46,226.4,6.57559632]
[1733969498939,2.06,226.46,226.4,6.57559632]
[1733969499829,2.06,226.46,226.43,2.2064]
[1733969500139,6.75542907,226.51,226.44,6.57559632]
[1733969500343,2.06,226.5,226.44,6.57559632]
[1733969500840,6.57559632,226.49,226.36,2.06]
[1733969501042,6.57559632,226.47,226.4,6.57559632]
[1733969501539,2.2063,226.45,226.41,2.2066]
[1733969501740,2.2063,226.45,226.4,6.57559632]
[1733969502639,2.2063,226.45,226.4,8.78229632]
[1733969503040,8.78189632,226.45,226.4,2.2067]
[1733969503239,10.84189632,226.45,226.4,2.2067]
[1733969506044,10.84189632,226.45,226.41,2.2067]
[1733969506747,2.2065,226.43,226.38,2.2069]
[1733969506949,2.2065,226.43,226.39,6.57559632]
[1733969507853,2.2065,226.43,226.39,8.78239632]
[1733969508046,10.84199632,226.45,226.39,6.57559632]
[1733969508550,10.84199632,226.45,226.4,2.2068]
[1733969510453,8.63559632,226.45,226.4,2.2068]
[1733969510740,2.2064,226.44,226.4,2.2068]
[1733969512348,2.2064,226.44,226.39,8.78249632]
[1733969515656,2.06,226.45,226.41,6.57559632]
[1733969516060,2.2063,226.46,226.41,6.57559632]
[1733969516658,2.2063,226.46,226.42,2.2065]
[1733969517658,2.2063,226.46,226.41,8.78229632]
[1733969518168,2.2061,226.48,226.44,2.2064]
[1733969518959,2.2061,226.48,226.43,8.78209632]
[1733969526560,2.2061,226.48,226.43,2.2065]
[1733969526768,2.2061,226.48,226.43,8.78209632]
[1733969528659,2.06,226.49,226.43,8.78209632]
[1733969529007,2.2061,226.47,226.43,8.78209632]
[1733969529354,2.2061,226.47,226.43,2.2065]
[1733969536768,2.06,226.68,226.46,6.57559632]
[1733969536964,6.57559632,226.64,226.56,6.57559632]
[1733969537158,2.2045,226.63,226.56,6.57559632]
[1733969537466,6.57559632,226.6,226.44,2.8984]
[1733969537668,6.57559632,226.58,226.51,6.57559632]
[1733969538162,2.2052,226.56,226.48,2.06]
[1733969538468,2.2052,226.56,226.51,6.57559632]
[1733969540470,8.63559632,226.58,226.51,6.57559632]
[1733969540668,2.2053,226.55,226.51,6.57559632]
[1733969542877,6.57559632,226.56,226.48,2.2059]
[1733969543072,6.57559632,226.54,226.47,6.57559632]
[1733969543770,2.06,226.53,226.47,6.57559632]
[1733969544571,2.2057,226.51,226.47,6.57559632]
[1733969544865,2.06,226.53,226.47,6.57559632]
[1733969545171,6.57559632,226.52,226.44,2.8984]
[1733969545372,6.57559632,226.52,226.42,2.06]
[1733969545671,6.57559632,226.52,226.44,6.57559632]
[1733969545870,2.06,226.53,226.44,6.57559632]
[1733969546070,2.06,226.53,226.46,6.57559632]
[1733969546272,2.06,226.53,226.48,6.57559632]
[1733969546766,2.2058,226.51,226.48,6.57559632]
[1733969546971,2.06,226.53,226.46,6.57559632]
[1733969547565,2.2058,226.5,226.46,6.57559632]
[1733969552870,2.2057,226.52,226.46,8.78179632]
[1733969553071,2.06,226.53,226.46,8.78179632]
[1733969554179,2.2058,226.5,226.46,8.78179632]
[1733969554869,2.206,226.48,226.43,2.2065]
[1733969555074,2.206,226.48,226.44,6.57559632]
[1733969555471,2.206,226.48,226.43,2.2065]
[1733969555673,2.206,226.48,226.44,6.57559632]
[1733969556081,2.2061,226.47,226.4,2.06]
[1733969556377,2.2061,226.47,226.44,6.57559632]
[1733969560176,2.206,226.49,226.44,8.78199632]
[1733969560381,2.06,226.53,226.44,8.78199632]
[1733969560580,6.57559632,226.52,226.44,8.78199632]
[1733969561676,2.206,226.49,226.44,8.78199632]
[1733969563579,2.206,226.49,226.46,6.57559632]
[1733969563937,2.2058,226.51,226.46,8.78179632]
[1733969564078,2.06,226.53,226.48,6.57559632]
[1733969565083,2.2057,226.51,226.48,6.57559632]
[1733969567884,2.2058,226.5,226.48,6.57559632]
[1733969568188,2.2058,226.5,226.46,2.2062]
[1733969568189,8.63559632,226.54,226.45,2.2063]
[1733969568385,6.57559632,226.52,226.45,8.78189632]
[1733969568785,2.2059,226.49,226.45,8.78189632]
[1733969569880,6.57559632,226.52,226.45,6.57559632]
[1733969570594,2.2059,226.49,226.45,8.78179632]
[1733969570885,2.06,226.54,226.47,6.57559632]
[1733969571086,2.06,226.54,226.49,6.57559632]
[1733969571785,6.57559632,226.56,226.49,6.57559632]
[1733969571786,8.63559632,226.56,226.49,6.57559632]
[1733969571976,6.57559632,226.56,226.49,6.57559632]
[1733969572189,8.63559632,226.56,226.49,6.57559632]
[1733969572582,2.2056,226.53,226.49,6.57559632]
[1733969573280,2.2054,226.54,226.49,8.78149632]
[1733969576893,2.2054,226.54,226.51,6.57559632]
[1733969577589,2.2054,226.54,226.5,2.2058]
[1733969577784,2.2054,226.54,226.5,8.78139632]
[1733969581099,2.2054,226.54,226.46,2.6721]
[1733969581100,2.2051,226.58,226.53,2.2055]
[1733969581296,2.2051,226.58,226.54,6.57559632]
[1733969585300,1.3983,226.66,226.57,6.57559632]
[1733969585554,2.2047,226.62,226.57,6.57559632]
[1733969586191,2.2048,226.61,226.57,6.57559632]
[1733969590499,2.205,226.58,226.54,6.57559632]
[1733969591403,2.2049,226.6,226.56,6.57559632]
[1733969592003,6.57559632,226.63,226.56,6.57559632]
[1733969592604,2.2049,226.59,226.56,6.57559632]
[1733969593403,2.2049,226.59,226.5,2.04]
[1733969593706,6.57559632,226.61,226.55,6.57559632]
[1733969593707,2.205,226.58,226.55,6.57559632]
[1733969594503,6.57559632,226.61,226.55,6.57559632]
[1733969594705,2.2049,226.59,226.55,6.57559632]
[1733969595508,2.2049,226.59,226.55,8.78089632]
[1733969598302,5.22329273,226.65,226.55,6.57559632]
[1733969598508,183.37783963,226.81,226.6,6.57559632]
[1733969598509,2.04,226.71,226.6,6.57559632]
[1733969598713,6.57559632,226.68,226.6,6.57559632]
[1733969598916,2.2047,226.62,226.56,4.9773]
[1733969599218,6.57559632,226.64,226.57,6.57559632]
[1733969599617,2.2046,226.62,226.57,6.57559632]
[1733969601315,2.2047,226.61,226.57,6.57559632]
[1733969601518,2.2047,226.61,226.59,6.57559632]
[1733969602819,2.2047,226.61,226.57,6.57559632]
[1733969604019,2.04,226.66,226.59,6.57559632]
[1733969604228,2.04,226.66,226.61,6.57559632]
[1733969605022,2.2044,226.65,226.61,6.57559632]
[1733969610868,2.2041,226.68,226.63,6.57559632]
[1733969611023,2.04,226.69,226.63,6.57559632]
[1733969611233,8.61559632,226.7,226.63,6.57559632]
[1733969611527,2.04,226.69,226.63,6.57559632]
[1733969612419,2.04,226.69,226.61,6.57559632]
[1733969612625,2.2044,226.65,226.61,6.57559632]
[1733969614345,2.2044,226.65,226.61,8.78029632]
[1733969615742,2.2044,226.65,226.61,6.57559632]
[1733969616124,2.2042,226.67,226.63,6.57559632]
[1733969616329,2.2042,226.67,226.63,8.78009632]
[1733969616533,6.57559632,226.68,226.62,6.57559632]
[1733969616729,6.57559632,226.68,226.59,2.04]
[1733969616930,6.57559632,226.68,226.6,6.57559632]
[1733969617432,6.57559632,226.64,226.57,6.57559632]
[1733969617634,8.61559632,226.64,226.57,6.57559632]
[1733969618427,2.2047,226.62,226.57,6.57559632]
[1733969618627,6.57559632,226.6,226.47,1.4658]
[1733969618828,6.57559632,226.6,226.53,6.57559632]
[1733969619435,2.205,226.59,226.55,6.57559632]
[1733969619737,2.205,226.59,226.57,6.57559632]
[1733969619939,2.04,226.64,226.57,6.57559632]
[1733969621728,2.2046,226.62,226.57,8.78069632]
[1733969624239,2.04,226.64,226.57,6.57559632]
[1733969624432,2.2048,226.61,226.57,6.57559632]
[1733969625842,2.2049,226.6,226.57,6.57559632]
[1733969626540,2.2049,226.59,226.57,6.57559632]
[1733969632940,2.04,226.64,226.57,6.57559632]
[1733969633135,2.04,226.64,226.59,6.57559632]
[1733969633637,8.61559632,226.64,226.57,6.57559632]
[1733969634543,2.2047,226.62,226.57,8.78069632]
[1733969634744,6.57559632,226.64,226.57,6.57559632]
[1733969635043,2.04,226.65,226.59,6.57559632]
[1733969635238,6.57559632,226.64,226.57,6.57559632]
[1733969635643,2.2045,226.63,226.58,2.205]
[1733969636043,2.2045,226.63,226.59,6.57559632]
[1733969639248,4.2444,226.65,226.59,8.78039632]
[1733969640343,2.04,226.65,226.59,2.2048]
[1733969640544,2.04,226.65,226.57,2.205]
[1733969640849,2.04,226.65,226.57,8.78059632]
[1733969641739,2.2046,226.63,226.57,8.78059632]
[1733969642954,6.57559632,226.64,226.48,2.7261]
[1733969643149,6.57559632,226.62,226.55,6.57559632]
[1733969643842,2.2051,226.58,226.55,6.57559632]
[1733969652757,6.57559632,226.58,226.49,2.2058]
[1733969652947,6.57559632,226.58,226.5,6.57559632]
[1733969653357,2.2054,226.54,226.5,6.57559632]
[1733969654656,2.2054,226.54,226.49,2.2059]
[1733969654750,2.2054,226.54,226.49,8.78149632]
[1733969655056,2.04,226.55,226.49,6.57559632]
[1733969655255,2.2055,226.53,226.49,6.57559632]
[1733969655655,2.04,226.55,226.48,2.7261]
[1733969655850,2.2056,226.53,226.49,6.57559632]
[1733969656751,2.04,226.55,226.38,6.113838]
[1733969656752,6.57559632,226.54,226.38,6.113838]
[1733969656957,6.57559632,226.54,226.46,6.57559632]
[1733969658154,2.2059,226.5,226.46,6.57559632]
[1733969659059,2.2059,226.49,226.46,6.57559632]
[1733969667452,2.2058,226.51,226.46,6.57559632]
[1733969675672,2.2058,226.5,226.46,6.57559632]
[1733969679871,2.2057,226.52,226.46,8.78179632]
[1733969680077,2.2057,226.52,226.48,6.57559632]
[1733969680484,2.2057,226.51,226.48,6.57559632]
[1733969684993,2.2058,226.5,226.46,2.2062]
[1733969685396,6.57559632,226.53,226.46,6.57559632]
[1733969685594,2.2059,226.49,226.44,2.2063]
[1733969685790,2.2059,226.49,226.45,6.57559632]
[1733969686189,2.206,226.48,226.45,6.57559632]
[1733969688301,2.206,226.48,226.44,6.57559632]
[1733969689394,6.57559632,226.49,226.4,5.21607293]
[1733969689726,6.57559632,226.49,226.42,6.57559632]
[1733969689902,6.57559632,226.49,226.39,2.8434]
[1733969690400,2.2065,226.43,226.41,6.57559632]
[1733969692203,2.2065,226.43,226.39,2.8434]
[1733969692399,2.2065,226.43,226.41,6.57559632]
[1733969694002,2.04,226.45,226.2,33.72246224]
[1733969694201,2.2068,226.4,226.37,6.57559632]
[1733969694399,6.57559632,226.43,226.37,6.57559632]
[1733969695408,2.207,226.38,226.35,6.57559632]
[1733969695606,6.57559632,226.43,226.35,6.57559632]
[1733969695607,2.04,226.4,226.35,6.57559632]
[1733969696307,2.2073,226.35,226.31,2.9197]
[1733969696503,2.2073,226.35,226.33,6.57559632]
[1733969699511,2.2073,226.35,226.31,2.9197]
[1733969699709,2.2073,226.35,226.34,6.57559632]
[1733969702411,2.04,226.4,226.31,2.9197]
[1733969702605,2.04,226.4,226.34,6.57559632]